fUSD/lending_fUSD_20260314
["ID","MTS","AMOUNT","RATE_DAILY","PERIOD"]
[408353215,1773486632353,-166.66,0.00019028,2]
[408353216,1773486632363,-1950.31,0.00019062,2]
[408353217,1773486632373,-865.3277,0.000191,2]
[408353218,1773486632384,-8554.6245,0.000191,2]
[408353219,1773486632394,-227.02109222,0.00019104,2]
[408353220,1773486632403,-4934.461,0.00019106,2]
[408353221,1773486632413,-174.164,0.00019106,2]
[408353222,1773486632422,-500.0,0.00019106,2]
[408353223,1773486632431,-596.66,0.00019106,2]
[408353224,1773486632441,-900.59,0.00019108,2]
[408353225,1773486632450,-3357.59057681,0.00019117,2]
[408353226,1773486632460,-912.4829,0.00019139,2]
[408353227,1773486632469,-6590.6740799,0.00019172,2]
[408353228,1773486632478,-3045.56344706,0.00019189,2]
[408353229,1773486632488,-350.0,0.00019198,2]
[408353230,1773486632497,-500.0,0.00019199,2]
[408353231,1773486632506,-183.5291821,0.00019199,2]
[408353232,1773486632515,-171.94157763,0.00019199,2]
[408353233,1773486632524,-35.98489752,0.00019199,2]
[408353234,1773486632545,-162.1323983,0.00019199,2]
[408353235,1773486632556,-500.0,0.00019199,2]
[408353236,1773486632566,-500.0,0.00019199,2]
[408353237,1773486632576,-500.0,0.00019199,2]
[408353238,1773486632585,-500.0,0.00019199,2]
[408353239,1773486632595,-500.0,0.00019199,2]
[408353240,1773486632605,-500.0,0.00019199,2]
[408353241,1773486632616,-500.0,0.00019199,2]
[408353242,1773486632625,-500.0,0.00019199,2]
[408353243,1773486632635,-968.41880083,0.000192,5]
[408353244,1773486632646,-3994.67917432,0.000192,5]
[408353245,1773486632662,-86.90202485,0.000192,5]
[408353246,1773486632671,-3438.13710175,0.000192,3]
[408353249,1773486638055,-14130.81005888,0.000192,3]
[408353257,1773486640383,-673.02573244,0.000192,3]
[408353268,1773486643293,-1514.16953038,0.000191,5]
[408353269,1773486643304,-3721.46549852,0.000191,5]
[408353270,1773486643318,-4073.81132255,0.000191,5]
[408353271,1773486643328,-3369.11967459,0.000191,5]
[408353272,1773486643339,-3679.0643309,0.000191,5]
[408353273,1773486643348,-3395.7041,0.000191,2]
[408353274,1773486643360,-19172.18064738,0.000192,3]
[408353277,1773486645896,-473.87992186,0.000192,3]
[408353278,1773486645909,-1136.82271602,0.000192,3]
[408353279,1773486646162,-2341.81661271,0.000192,3]
[408353280,1773486646174,-574.53499821,0.000192,3]
[408353282,1773486908904,801.0,0.00013657,7]
[408353285,1773487679428,198.57,0.00013756,2]
[408353295,1773487832048,-500.0,0.00014324,2]
[408353296,1773487832057,-250.0,0.00014324,2]
[408353297,1773487832067,-398.86179408,0.00014324,2]
[408353298,1773487832076,-1789.17,0.00014655,2]
[408353299,1773487832085,-186.97354337,0.00015544,2]
[408353300,1773487832094,-1200.0,0.00015753,2]
[408353301,1773487832103,-300.0,0.00015755,2]
[408353302,1773487832112,-300.0,0.00015755,2]
[408353303,1773487832121,-1200.0,0.00015755,2]
[408353304,1773487832131,-300.0,0.00015755,2]
[408353305,1773487832140,-5000.0,0.00015756,2]
[408353306,1773487832149,-300.0,0.00015756,2]
[408353307,1773487832158,-250.0,0.00015756,2]
[408353308,1773487832167,-349.76017459,0.00015756,2]
[408353309,1773487832176,-426.7448821,0.0001655,2]
[408353310,1773487832186,-500.0,0.0001655,2]
[408353311,1773487832195,-500.0,0.0001674,2]
[408353312,1773487832204,-1979.78,0.00017,2]
[408353313,1773487832214,-2291.02,0.00017,2]
[408353314,1773487832223,-2621.54,0.00017,2]
[408353315,1773487832232,-508.0,0.00017,2]
[408353316,1773487832241,-203.53,0.00017195,2]
[408353317,1773487832250,-1104.92,0.00017224,2]
[408353318,1773487832259,-300.0,0.0001723,2]
[408353319,1773487832269,-420.0,0.0001723,2]
[408353321,1773487832278,-150.0,0.00017281,2]
[408353323,1773487832287,-1680.0,0.00017317,2]
[408353325,1773487832296,-500.0,0.00017397,2]
[408353327,1773487832306,-3864.21,0.00017438,2]
[408353329,1773487832315,-200.0,0.00017899,2]
[408353332,1773487832325,-550.0,0.0001793,2]
[408353335,1773487832334,-151.0,0.00017931,2]
[408353338,1773487832344,-151.0,0.00017931,2]
[408353340,1773487832354,-151.0,0.00017931,2]
[408353342,1773487832363,-151.0,0.00017931,2]
[408353344,1773487832373,-151.0,0.00017931,2]
[408353346,1773487832382,-151.0,0.00017931,2]
[408353347,1773487832392,-151.0,0.00017931,2]
[408353349,1773487832402,-151.0,0.00017931,2]
[408353350,1773487832412,-151.0,0.00017931,2]
[408353351,1773487832422,-151.0,0.00017931,2]
[408353352,1773487832432,-151.0,0.00017931,2]
[408353353,1773487832442,-278.54774132,0.00017931,2]
[408353354,1773487832451,-151.0,0.00017931,2]
[408353355,1773487832461,-151.0,0.00017931,2]
[408353356,1773487832470,-151.0,0.00017931,2]
[408353357,1773487832479,-151.0,0.00017931,2]
[408353358,1773487832488,-151.0,0.00017931,2]
[408353359,1773487832498,-151.0,0.00017931,2]
[408353360,1773487832508,-151.0,0.00017931,2]
[408353361,1773487832517,-151.0,0.00017931,2]
[408353362,1773487832527,-151.0,0.00017931,2]
[408353363,1773487832536,-151.0,0.00017931,2]
[408353364,1773487832545,-5747.5,0.00017942,2]
[408353365,1773487832555,-786.98,0.00018012,2]
[408353366,1773487832564,-1104.92,0.00018085,2]
[408353367,1773487832572,-500.0,0.00018085,2]
[408353368,1773487832582,-4067.72000362,0.0001814,2]
[408353369,1773487832591,-203.53,0.0001815,2]
[408353370,1773487832600,-2424.8966,0.00018256,2]
[408353371,1773487832609,-628.28054342,0.00018356,7]
[408353372,1773487832619,-500.0,0.00018359,2]
[408353373,1773487832629,-300.0,0.000185,6]
[408353374,1773487832638,-700.0,0.000186,6]
[408353375,1773487832647,-1000.0,0.000187,6]
[408353376,1773487832656,-421.0,0.00018716,2]
[408353377,1773487832665,-234.83493375,0.00018727,2]
[408353378,1773487832675,-174.61919141,0.00018727,2]
[408353379,1773487832684,-421.0,0.00018763,2]
[408353380,1773487832693,-2437.5719377,0.00018799,2]
[408353381,1773487832703,-156.59230823,0.000188,4]
[408353382,1773487832713,-171.11992068,0.000188,4]
[408353383,1773487832723,-167.50518318,0.000188,4]
[408353384,1773487832732,-169.85633249,0.000188,4]
[408353385,1773487832743,-1400.0,0.000188,6]
[408353386,1773487832755,-772.87394162,0.0001881,2]
[408353387,1773487832766,-2366.40861981,0.00018812,2]
[408353388,1773487832775,-180.0,0.00018843,2]
[408353389,1773487832786,-421.0,0.00018847,2]
[408353390,1773487832796,-421.0,0.00018852,2]
[408353391,1773487832805,-500.0,0.00018873,2]
[408353392,1773487832816,-500.0,0.00018873,2]
[408353393,1773487832825,-500.44254829,0.00018873,2]
[408353394,1773487832835,-167.95560281,0.00018873,2]
[408353395,1773487832844,-505.18477373,0.00018873,2]
[408353396,1773487832852,-500.0,0.00018873,2]
[408353397,1773487832861,-364.87438983,0.00018873,2]
[408353398,1773487832870,-225.45228813,0.0001889,2]
[408353399,1773487832879,-500.0,0.00018899,2]
[408353400,1773487832889,-500.0,0.00018899,2]
[408353401,1773487832899,-500.0,0.00018899,2]
[408353402,1773487832911,-500.0,0.00018899,2]
[408353403,1773487832920,-500.0,0.00018899,2]
[408353404,1773487832929,-500.0,0.00018899,2]
[408353405,1773487832939,-500.0,0.00018899,2]
[408353406,1773487832948,-500.0,0.00018899,2]
[408353407,1773487832957,-500.0,0.00018899,2]
[408353408,1773487832966,-500.0,0.00018899,2]
[408353409,1773487832976,-500.0,0.00018899,2]
[408353410,1773487832986,-500.0,0.00018899,2]
[408353411,1773487832996,-500.0,0.00018899,2]
[408353412,1773487833005,-500.0,0.00018899,2]
[408353413,1773487833015,-500.0,0.00018899,2]
[408353414,1773487833024,-514.91,0.00018899,2]
[408353415,1773487833033,-514.91,0.00018899,2]
[408353416,1773487833042,-514.91,0.00018899,2]
[408353417,1773487833051,-514.91,0.00018899,2]
[408353418,1773487833061,-514.91,0.00018899,2]
[408353419,1773487833070,-500.0,0.00018899,2]
[408353420,1773487833079,-500.0,0.00018899,2]
[408353421,1773487833089,-467.99585026,0.00018899,2]
[408353422,1773487833102,-32.00414974,0.00018899,2]
[408353423,1773487833111,-202.10153577,0.00018899,2]
[408353424,1773487833121,-500.0,0.00018899,2]
[408353425,1773487833131,-500.0,0.00018899,2]
[408353426,1773487833140,-500.0,0.00018899,2]
[408353427,1773487833150,-500.0,0.00018899,2]
[408353428,1773487833159,-500.0,0.00018899,2]
[408353429,1773487833170,-883.77,0.00018899,2]
[408353430,1773487833180,-500.0,0.00018899,2]
[408353431,1773487833191,-500.0,0.00018899,2]
[408353432,1773487833200,-500.0,0.00018899,2]
[408353433,1773487833211,-181.4106691,0.00018899,2]
[408353434,1773487833220,-500.0,0.00018899,2]
[408353435,1773487833230,-318.69238869,0.00018899,2]
[408353436,1773487833241,-500.0,0.00018899,2]
[408353437,1773487833250,-500.0,0.00018899,2]
[408353438,1773487833259,-500.0,0.00018899,2]
[408353439,1773487833271,-500.0,0.00018899,2]
[408353440,1773487833280,-500.0,0.00018899,2]
[408353441,1773487833290,-500.0,0.00018899,2]
[408353442,1773487833299,-500.0,0.00018899,2]
[408353443,1773487833309,-500.0,0.00018899,2]
[408353444,1773487833319,-513.58200217,0.00018899,2]
[408353445,1773487833328,-500.0,0.00018899,2]
[408353446,1773487833338,-500.0,0.00018899,2]
[408353447,1773487833348,-500.0,0.00018899,2]
[408353448,1773487833358,-500.0,0.00018899,2]
[408353449,1773487833367,-500.0,0.00018899,2]
[408353450,1773487833377,-292.01024919,0.00018899,2]
[408353451,1773487833386,-500.0,0.00018899,2]
[408353452,1773487833396,-500.0,0.00018899,2]
[408353453,1773487833405,-500.0,0.00018899,2]
[408353454,1773487833414,-500.0,0.00018899,2]
[408353455,1773487833424,-500.0,0.00018899,2]
[408353456,1773487833433,-500.0,0.00018899,2]
[408353457,1773487833442,-500.0,0.00018899,2]
[408353458,1773487833451,-500.0,0.00018899,2]
[408353459,1773487833460,-500.0,0.00018899,2]
[408353460,1773487833469,-500.0,0.00018899,2]
[408353461,1773487833479,-470.35910435,0.00018899,2]
[408353462,1773487833487,-500.0,0.00018899,2]
[408353463,1773487833497,-500.0,0.00018899,2]
[408353464,1773487833506,-248.8,0.00018899,2]
[408353465,1773487833515,-459.25825701,0.00018899,2]
[408353466,1773487833525,-500.0,0.00018899,2]
[408353467,1773487833534,-500.0,0.00018899,2]
[408353468,1773487833543,-500.0,0.00018899,2]
[408353469,1773487833553,-600.0,0.00018899,2]
[408353470,1773487833563,-174.04429877,0.00018899,2]
[408353471,1773487833572,-500.0,0.00018899,2]
[408353472,1773487833581,-500.0,0.00018899,2]
[408353473,1773487833591,-500.0,0.00018899,2]
[408353474,1773487833601,-500.0,0.00018899,2]
[408353475,1773487833610,-500.0,0.00018899,2]
[408353476,1773487833619,-500.0,0.00018899,2]
[408353477,1773487833629,-500.0,0.00018899,2]
[408353478,1773487833638,-500.0,0.00018899,2]
[408353479,1773487833647,-500.0,0.00018899,2]
[408353480,1773487833656,-500.0,0.00018899,2]
[408353481,1773487833666,-500.0,0.00018899,2]
[408353482,1773487833675,-500.0,0.00018899,2]
[408353483,1773487833684,-500.0,0.00018899,2]
[408353484,1773487833693,-500.0,0.00018899,2]
[408353485,1773487833702,-500.0,0.00018899,2]
[408353486,1773487833711,-500.0,0.00018899,2]
[408353487,1773487833720,-500.0,0.00018899,2]
[408353488,1773487833729,-500.0,0.00018899,2]
[408353489,1773487833741,-500.0,0.00018899,2]
[408353490,1773487833754,-500.0,0.00018899,2]
[408353491,1773487833764,-500.0,0.00018899,2]
[408353492,1773487833773,-500.0,0.00018899,2]
[408353493,1773487833783,-500.0,0.00018899,2]
[408353494,1773487833794,-500.0,0.00018899,2]
[408353495,1773487833804,-500.0,0.00018899,2]
[408353496,1773487833815,-500.0,0.00018899,2]
[408353497,1773487833824,-500.0,0.00018899,2]
[408353498,1773487833834,-500.0,0.00018899,2]
[408353499,1773487833843,-500.0,0.00018899,2]
[408353500,1773487833852,-500.0,0.00018899,2]
[408353501,1773487833861,-297.1096456,0.00018899,2]
[408353502,1773487833873,-202.8903544,0.00018899,2]
[408353503,1773487833883,-500.0,0.00018899,2]
[408353504,1773487833893,-500.0,0.00018899,2]
[408353506,1773487833902,-500.0,0.00018899,2]
[408353507,1773487833912,-500.0,0.00018899,2]
[408353508,1773487833922,-500.0,0.00018899,2]
[408353509,1773487833932,-500.0,0.00018899,2]
[408353510,1773487833941,-465.10933352,0.00018899,2]
[408353511,1773487833950,-500.0,0.00018899,2]
[408353512,1773487833961,-500.0,0.00018899,2]
[408353513,1773487833970,-500.0,0.00018899,2]
[408353514,1773487833979,-9.77088266,0.00018899,2]
[408353515,1773487834136,-490.22911734,0.00018899,2]
[408353516,1773487834146,-500.0,0.00018899,2]
[408353517,1773487834155,-500.0,0.00018899,2]
[408353518,1773487834165,-500.0,0.00018899,2]
[408353519,1773487834175,-500.0,0.00018899,2]
[408353520,1773487834184,-500.0,0.00018899,2]
[408353521,1773487834193,-500.0,0.00018899,2]
[408353522,1773487834202,-500.0,0.00018899,2]
[408353523,1773487834211,-500.0,0.00018899,2]
[408353524,1773487834220,-500.0,0.00018899,2]
[408353525,1773487834229,-500.0,0.00018899,2]
[408353526,1773487834238,-500.0,0.00018899,2]
[408353527,1773487834247,-500.0,0.00018899,2]
[408353528,1773487834258,-500.0,0.00018899,2]
[408353529,1773487834267,-500.0,0.00018899,2]
[408353530,1773487834277,-500.0,0.00018899,2]
[408353531,1773487834286,-500.0,0.00018899,2]
[408353532,1773487834295,-500.0,0.00018899,2]
[408353533,1773487834304,-500.0,0.00018899,2]
[408353534,1773487834313,-500.0,0.00018899,2]
[408353535,1773487834322,-500.0,0.00018899,2]
[408353536,1773487834332,-405.0,0.00018899,2]
[408353537,1773487834341,-500.0,0.00018899,2]
[408353538,1773487834351,-500.0,0.00018899,2]
[408353539,1773487834360,-500.0,0.00018899,2]
[408353540,1773487834370,-500.0,0.00018899,2]
[408353541,1773487834379,-500.0,0.00018899,2]
[408353542,1773487834388,-500.0,0.00018899,2]
[408353543,1773487834398,-500.0,0.00018899,2]
[408353544,1773487834408,-500.0,0.00018899,2]
[408353545,1773487834417,-500.0,0.00018899,2]
[408353546,1773487834427,-527.33413299,0.00018899,2]
[408353547,1773487834436,-500.0,0.00018899,2]
[408353548,1773487834446,-500.0,0.00018899,2]
[408353549,1773487834455,-500.0,0.00018899,2]
[408353550,1773487834465,-500.0,0.00018899,2]
[408353551,1773487834474,-500.0,0.00018899,2]
[408353552,1773487834484,-500.0,0.00018899,2]
[408353553,1773487834493,-500.0,0.00018899,2]
[408353554,1773487834503,-500.0,0.00018899,2]
[408353555,1773487834512,-200.0,0.00018899,2]
[408353556,1773487834522,-174.81914254,0.00018899,2]
[408353557,1773487834531,-500.0,0.00018899,2]
[408353558,1773487834541,-504.20218204,0.00018899,2]
[408353559,1773487834550,-159.01520008,0.00018899,2]
[408353560,1773487834560,-306.72230641,0.00018899,2]
[408353561,1773487834569,-193.44146046,0.00018899,2]
[408353562,1773487834578,-500.0,0.00018899,2]
[408353563,1773487834587,-500.0,0.00018899,2]
[408353564,1773487834597,-500.0,0.00018899,2]
[408353565,1773487834607,-500.0,0.00018899,2]
[408353566,1773487834617,-500.0,0.00018899,2]
[408353567,1773487834627,-500.0,0.00018899,2]
[408353568,1773487834637,-500.0,0.00018899,2]
[408353569,1773487834646,-500.0,0.00018899,2]
[408353570,1773487834656,-1700.0,0.000189,6]
[408353571,1773487834665,-3150.23,0.000189,2]
[408353572,1773487834675,-458.87,0.0001891,2]
[408353573,1773487834684,-485.43,0.0001891,2]
[408353574,1773487834693,-421.0,0.00018933,2]
[408353575,1773487834704,-1104.92,0.00018946,2]
[408353576,1773487834714,-3287.88385891,0.00019,2]
[408353577,1773487834723,-935.0,0.00019006,2]
[408353578,1773487834732,-2351.0,0.00019033,2]
[408353579,1773487834744,-262.32041127,0.00019046,2]
[408353580,1773487834754,-23129.06713082,0.00019046,2]
[408353581,1773487834763,-728.86684312,0.00019046,2]
[408353582,1773487834772,-1915.14354733,0.00019046,2]
[408353583,1773487834783,-5566.2406926,0.00019046,2]
[408353584,1773487834794,-5959.0,0.00019068,2]
[408353585,1773487834804,-500.0,0.00019073,2]
[408353586,1773487834814,-500.0,0.00019073,2]
[408353587,1773487834824,-500.0,0.00019073,2]
[408353588,1773487834834,-311.78598342,0.00019073,2]
[408353589,1773487834843,-503.8059791,0.00019073,2]
[408353590,1773487834853,-162.25417935,0.00019073,2]
[408353591,1773487834863,-556.1229892,0.00019073,2]
[408353592,1773487834872,-500.0,0.00019073,2]
[408353593,1773487834882,-2893.65710378,0.00019082,2]
[408353594,1773487834892,-300.0,0.00019099,2]
[408353595,1773487834902,-666.0,0.00019099,2]
[408353596,1773487834912,-300.0,0.00019099,2]
[408353597,1773487834922,-672.44576879,0.00019099,2]
[408353598,1773487834932,-500.0,0.00019099,2]
[408353599,1773487834943,-500.0,0.00019099,2]
[408353600,1773487834952,-500.0,0.00019099,2]
[408353601,1773487834961,-514.91,0.00019099,2]
[408353602,1773487834971,-514.91,0.00019099,2]
[408353603,1773487834980,-514.91,0.00019099,2]
[408353604,1773487834990,-500.0,0.00019099,2]
[408353605,1773487835000,-500.0,0.00019099,2]
[408353606,1773487835010,-500.0,0.00019099,2]
[408353607,1773487835019,-500.0,0.00019099,2]
[408353608,1773487835028,-500.0,0.00019099,2]
[408353609,1773487835039,-500.0,0.00019099,2]
[408353610,1773487835048,-309.75605228,0.00019099,2]
[408353611,1773487835059,-500.0,0.00019099,2]
[408353612,1773487835070,-500.0,0.00019099,2]
[408353613,1773487835231,-500.0,0.00019099,2]
[408353614,1773487835241,-500.0,0.00019099,2]
[408353615,1773487835251,-500.0,0.00019099,2]
[408353616,1773487835261,-500.0,0.00019099,2]
[408353617,1773487835270,-500.0,0.00019099,2]
[408353618,1773487835280,-500.0,0.00019099,2]
[408353619,1773487835289,-300.0,0.00019099,2]
[408353620,1773487835298,-1000.0,0.000191,2]
[408353621,1773487835308,-757328.8489,0.000191,2]
[408353622,1773487835317,-164.205873,0.000191,2]
[408353623,1773487835326,-151.0,0.000191,2]
[408353624,1773487835335,-151.0,0.000191,2]
[408353625,1773487835345,-151.0,0.000191,2]
[408353626,1773487835354,-186.181362,0.000191,2]
[408353627,1773487835363,-151.0,0.000191,2]
[408353628,1773487835373,-155.530267,0.000191,2]
[408353629,1773487835382,-679.216454,0.000191,2]
[408353630,1773487835392,-679.216454,0.000191,2]
[408353631,1773487835401,-679.216454,0.000191,2]
[408353632,1773487835411,-679.216454,0.000191,2]
[408353633,1773487835421,-151.0,0.000191,2]
[408353634,1773487835430,-151.0,0.000191,2]
[408353635,1773487835440,-320.077593,0.000191,2]
[408353636,1773487835450,-320.077593,0.000191,2]
[408353637,1773487835460,-320.077593,0.000191,2]
[408353638,1773487835469,-151.0,0.000191,2]
[408353639,1773487835479,-160.073972,0.000191,2]
[408353640,1773487835488,-151.0,0.000191,2]
[408353641,1773487835498,-160.073972,0.000191,2]
[408353642,1773487835508,-160.073972,0.000191,2]
[408353643,1773487835518,-160.073972,0.000191,2]
[408353644,1773487835527,-770.713601,0.000191,2]
[408353645,1773487835537,-770.713601,0.000191,2]
[408353646,1773487835547,-770.713601,0.000191,2]
[408353647,1773487835556,-770.713601,0.000191,2]
[408353648,1773487835566,-552.738796,0.000191,2]
[408353649,1773487835576,-552.738796,0.000191,2]
[408353650,1773487835585,-552.738796,0.000191,2]
[408353651,1773487835595,-552.738796,0.000191,2]
[408353652,1773487835604,-151.0,0.000191,2]
[408353653,1773487835614,-153.699794,0.000191,2]
[408353654,1773487835624,-151.0,0.000191,2]
[408353655,1773487835633,-151.0,0.000191,2]
[408353656,1773487835643,-156.845434,0.000191,2]
[408353657,1773487835652,-310.983124,0.000191,2]
[408353658,1773487835662,-310.983124,0.000191,2]
[408353659,1773487835671,-310.983124,0.000191,2]
[408353660,1773487835681,-310.983124,0.000191,2]
[408353661,1773487835691,-151.0,0.000191,2]
[408353662,1773487835701,-203.53,0.00019105,2]
[408353663,1773487835711,-300.0,0.00019117,2]
[408353664,1773487835721,-250.0,0.00019139,2]
[408353665,1773487835732,-300.0,0.00019145,2]
[408353666,1773487835743,-300.0,0.00019145,2]
[408353667,1773487835754,-500.0,0.00019145,2]
[408353668,1773487835765,-500.0,0.00019145,2]
[408353669,1773487835774,-500.0,0.00019145,2]
[408353670,1773487835783,-514.91,0.00019145,2]
[408353671,1773487835792,-514.91,0.00019145,2]
[408353672,1773487835801,-514.91,0.00019145,2]
[408353673,1773487835810,-500.0,0.00019145,2]
[408353674,1773487835824,-500.0,0.00019145,2]
[408353675,1773487835833,-500.0,0.00019145,2]
[408353676,1773487835842,-500.0,0.00019145,2]
[408353677,1773487835851,-500.0,0.00019145,2]
[408353678,1773487835860,-500.0,0.00019145,2]
[408353679,1773487835869,-500.0,0.00019145,2]
[408353680,1773487835877,-500.0,0.00019145,2]
[408353681,1773487835886,-500.0,0.00019145,2]
[408353682,1773487835895,-500.0,0.00019145,2]
[408353683,1773487835904,-500.0,0.00019145,2]
[408353684,1773487835913,-500.0,0.00019145,2]
[408353685,1773487835923,-3357.5843625,0.00019146,2]
[408353686,1773487835932,-679474.6701298,0.00019146,2]
[408353687,1773487835941,-27053.9672421,0.00019146,2]
[408353688,1773487835950,-151.0,0.00019146,2]
[408353689,1773487835959,-151.0,0.00019146,2]
[408353690,1773487835969,-151.0,0.00019146,2]
[408353691,1773487835978,-161.847445,0.00019146,2]
[408353692,1773487835987,-151.0,0.00019146,2]
[408353693,1773487835996,-151.0,0.00019146,2]
[408353694,1773487836006,-679.216454,0.00019146,2]
[408353695,1773487836016,-679.216454,0.00019146,2]
[408353696,1773487836025,-679.216454,0.00019146,2]
[408353697,1773487836034,-679.216454,0.00019146,2]
[408353698,1773487836044,-151.0,0.00019146,2]
[408353699,1773487836053,-320.077593,0.00019146,2]
[408353700,1773487836062,-320.077593,0.00019146,2]
[408353701,1773487836071,-320.077593,0.00019146,2]
[408353702,1773487836080,-151.0,0.00019146,2]
[408353703,1773487836089,-160.073972,0.00019146,2]
[408353704,1773487836098,-151.0,0.00019146,2]
[408353705,1773487836107,-160.073972,0.00019146,2]
[408353706,1773487836117,-160.073972,0.00019146,2]
[408353707,1773487836126,-160.073972,0.00019146,2]
[408353708,1773487836135,-770.713601,0.00019146,2]
[408353709,1773487836145,-770.713601,0.00019146,2]
[408353710,1773487836155,-770.713601,0.00019146,2]
[408353711,1773487836165,-770.713601,0.00019146,2]
[408353712,1773487836174,-26045.319979,0.00019146,2]
[408353713,1773487836183,-552.738796,0.00019146,2]
[408353714,1773487836192,-552.738796,0.00019146,2]
[408353715,1773487836202,-552.738796,0.00019146,2]
[408353716,1773487836211,-552.738796,0.00019146,2]
[408353717,1773487836220,-151.0,0.00019146,2]
[408353718,1773487836230,-151.0,0.00019146,2]
[408353719,1773487836239,-151.0,0.00019146,2]
[408353720,1773487836249,-310.983124,0.00019146,2]
[408353721,1773487836259,-310.983124,0.00019146,2]
[408353722,1773487836268,-310.983124,0.00019146,2]
[408353723,1773487836279,-310.983124,0.00019146,2]
[408353724,1773487836288,-151.0,0.00019146,2]
[408353725,1773487836298,-250.0,0.00019172,2]
[408353726,1773487836308,-500.36457257,0.00019173,2]
[408353727,1773487836318,-500.0,0.00019173,2]
[408353728,1773487836327,-883.77,0.00019173,2]
[408353729,1773487836337,-421.0,0.00019174,2]
[408353730,1773487836347,-309.0,0.00019178,2]
[408353731,1773487836357,-307.645086,0.00019178,2]
[408353732,1773487836366,-307.645086,0.00019178,2]
[408353733,1773487836376,-307.645086,0.00019178,2]
[408353734,1773487836386,-307.645086,0.00019178,2]
[408353735,1773487836395,-307.645086,0.00019178,2]
[408353736,1773487836405,-307.645086,0.00019178,2]
[408353737,1773487836414,-307.645086,0.00019178,2]
[408353738,1773487836424,-307.645086,0.00019178,2]
[408353739,1773487836433,-151.0,0.00019178,2]
[408353740,1773487836442,-151.0,0.00019178,2]
[408353741,1773487836451,-151.0,0.00019178,2]
[408353742,1773487836461,-151.0,0.00019178,2]
[408353743,1773487836470,-151.0,0.00019178,2]
[408353744,1773487836479,-151.0,0.00019178,2]
[408353745,1773487836489,-156.466137,0.00019178,2]
[408353746,1773487836498,-469.972569,0.00019178,2]
[408353747,1773487836508,-469.972569,0.00019178,2]
[408353748,1773487836518,-469.972569,0.00019178,2]
[408353749,1773487836528,-469.972569,0.00019178,2]
[408353750,1773487836538,-469.972569,0.00019178,2]
[408353751,1773487836549,-469.972569,0.00019178,2]
[408353752,1773487836559,-469.972569,0.00019178,2]
[408353753,1773487836569,-469.972569,0.00019178,2]
[408353754,1773487836579,-552.738796,0.0001918,2]
[408353755,1773487836589,-552.738796,0.0001918,2]
[408353756,1773487836599,-552.738796,0.0001918,2]
[408353757,1773487836608,-552.738796,0.0001918,2]
[408353758,1773487836618,-151.0,0.0001918,2]
[408353759,1773487836628,-151.0,0.0001918,2]
[408353760,1773487836638,-151.0,0.0001918,2]
[408353761,1773487836647,-310.983124,0.0001918,2]
[408353762,1773487836657,-310.983124,0.0001918,2]
[408353763,1773487836667,-310.983124,0.0001918,2]
[408353764,1773487836676,-310.983124,0.0001918,2]